bitfinex-derivatives/quotes_SOLF0:USTF0_20250307
["timestamp","ask_amount","ask_price","bid_price","bid_amount"]
[1741320536211,0.0484764,140.99,140.97,0.04856235]
[1741320537312,0.0484764,140.99,140.93,27.4]
[1741320538307,7.0934,140.98,140.93,34.4954]
[1741320538508,7.0934,140.98,140.95,0.04912781]
[1741320539811,0.0484764,140.99,140.96,19.03122869]
[1741320540911,0.0484764,140.99,140.95,0.04912781]
[1741320542815,0.0484764,140.99,140.95,7.14352781]
[1741320543015,0.0484764,140.99,140.95,0.04912781]
[1741320544317,7.1413764,140.99,140.95,0.04912781]
[1741320544503,0.0484764,140.99,140.95,0.04912781]
[1741320544707,12.8816764,140.99,140.95,0.04912781]
[1741320546117,7.0931,140.98,140.95,0.04912781]
[1741320547119,5.7890764,140.99,140.95,0.04912781]
[1741320548918,7.0936,140.97,140.95,0.04912781]
[1741320549217,5.7890764,140.99,140.95,0.04912781]
[1741320549708,24.82030509,140.99,140.9,19.03122869]
[1741320549910,24.77182869,140.99,140.88,2.0514]
[1741320550114,19.03122869,140.97,140.88,27.38]
[1741320550315,27.38,140.96,140.88,27.38]
[1741320550517,27.38,140.96,140.86,46.41122869]
[1741320550719,7.0962,140.92,140.87,241.3182]
[1741320551217,7.14504652,140.93,140.88,7.0977]
[1741320551417,0.04934652,140.93,140.88,7.0977]
[1741320551819,7.14494652,140.93,140.89,7.0975]
[1741320552019,7.14494652,140.93,140.87,234.22]
[1741320552612,0.04934652,140.93,140.87,234.22]
[1741320553014,0.04934652,140.93,140.9,19.03122869]
[1741320553209,0.04934652,140.93,140.92,7.096]
[1741320553818,0.04934652,140.93,140.9,46.41122869]
[1741320554018,0.04934652,140.93,140.9,27.38]
[1741320555014,0.04934652,140.93,140.92,19.03122869]
[1741320555522,1.8751,140.99,140.92,19.03122869]
[1741320555723,1.8751,140.99,140.9,46.41122869]
[1741320556222,7.0939,140.97,140.92,7.0957]
[1741320556524,0.04573611,140.96,140.93,0.0496491]
[1741320557416,0.04573611,140.96,140.94,19.03122869]
[1741320557919,0.04573611,140.96,140.95,7.0945]
[1741320559920,0.04573611,140.96,140.94,46.41122869]
[1741320560126,0.04573611,140.96,140.94,27.38]
[1741320560325,0.04573611,140.96,140.93,0.0496491]
[1741320563731,7.13973611,140.96,140.93,0.0496491]
[1741320564429,0.04573611,140.96,140.93,0.0496491]
[1741320565731,0.04573611,140.96,140.93,7.1451491]
[1741320566130,0.04573611,140.96,140.93,0.0496491]
[1741320566626,0.04573611,140.96,140.95,7.0945]
[1741320567228,0.04573611,140.96,140.93,7.1451491]
[1741320567725,0.04573611,140.96,140.93,0.0496491]
[1741320569333,7.13973611,140.96,140.93,0.0496491]
[1741320570131,0.04573611,140.96,140.93,0.0496491]
[1741320570625,7.095,140.94,140.93,0.0496491]
[1741320571433,27.36,140.95,140.87,234.22]
[1741320571725,3.8623,140.94,140.86,27.36]
[1741320572124,3.8623,140.94,140.86,34.4589]
[1741320572527,0.05419592,140.91,140.86,34.4589]
[1741320573132,7.15109592,140.91,140.86,34.4589]
[1741320573630,7.15109592,140.91,140.86,7.0989]
[1741320573831,7.15109592,140.91,140.87,7.0985]
[1741320575328,0.05419592,140.91,140.85,27.36]
[1741320575632,27.41419592,140.91,140.85,7.0995]
[1741320576029,27.41419592,140.91,140.86,7.0989]
[1741320576334,27.36,140.91,140.84,19.03122869]
[1741320576534,0.05144691,140.9,140.84,19.03122869]
[1741320577234,0.05144691,140.9,140.88,7.098]
[1741320577437,0.05144691,140.9,140.84,19.03122869]
[1741320578829,0.05144691,140.9,140.87,7.0984]
[1741320579028,0.05144691,140.9,140.86,46.39122869]
[1741320579231,0.05144691,140.9,140.88,7.098]
[1741320579829,0.05144691,140.9,140.87,7.0985]
[1741320580029,0.05144691,140.9,140.86,46.39122869]
[1741320580536,0.05144691,140.9,140.87,7.0985]
[1741320582839,0.05144691,140.9,140.86,34.4587]
[1741320584140,0.05144691,140.9,140.86,27.36]
[1741320584331,7.0979,140.89,140.86,27.36]
[1741320584536,7.0979,140.89,140.84,26.13132869]
[1741320584736,0.05144691,140.9,140.83,27.36]
[1741320585037,0.05144691,140.9,140.85,7.0992]
[1741320586031,0.05144691,140.9,140.83,27.36]
[1741320586338,7.14864691,140.9,140.86,7.099]
[1741320586840,7.14864691,140.9,140.87,7.0985]
[1741320587039,0.05144691,140.9,140.87,7.0985]
[1741320587340,0.05144691,140.9,140.84,19.03122869]
[1741320587540,0.05144691,140.9,140.88,7.0977]
[1741320588451,0.05144691,140.9,140.89,7.0975]
[1741320589644,0.05144691,140.9,140.88,7.0979]
[1741320592246,0.05144691,140.9,140.84,19.03122869]
[1741320592446,0.05144691,140.9,140.87,7.0984]
[1741320593739,0.05144691,140.9,140.88,27.36]
[1741320594443,0.05144691,140.9,140.88,34.4579]
[1741320595039,0.05144691,140.9,140.86,12.18364636]
[1741320595241,12.23509327,140.9,140.82,41.56744636]
[1741320595840,7.0984,140.88,140.84,12.18364636]
[1741320597039,12.23509327,140.9,140.84,12.18364636]
[1741320597542,12.18364636,140.88,140.81,234.12]
[1741320597744,12.18364636,140.88,140.81,246.30364636]
[1741320598044,7.15179545,140.86,140.81,253.40484636]
[1741320598644,7.15179545,140.86,140.81,241.2212]
[1741320599038,0.05239545,140.86,140.81,234.12]
[1741320599243,0.05239545,140.86,140.81,253.17507488]
[1741320599743,0.05239545,140.86,140.81,255.17497488]
[1741320599943,0.05239545,140.86,140.85,7.0996]
[1741320601545,27.36,140.92,140.88,7.0976]
[1741320601751,27.36,140.94,140.85,19.05507488]
[1741320602442,27.36,140.94,140.84,27.36]
[1741320602644,19.05507488,140.93,140.84,27.36]
[1741320602851,0.0497961,140.9,140.88,0.05275313]
[1741320603946,7.0975,140.89,140.88,0.05275313]
[1741320604339,0.0497961,140.9,140.88,0.05275313]
[1741320606957,0.0497961,140.9,140.89,7.0975]
[1741320607251,0.0497961,140.9,140.88,0.05275313]
[1741320611557,0.0497961,140.9,140.88,7.15065313]
[1741320611768,0.0497961,140.9,140.82,39.23717632]
[1741320611950,0.0497961,140.9,140.83,39.23717632]
[1741320612149,7.0982,140.88,140.83,46.33767632]
[1741320613161,0.04479645,140.87,140.84,7.0996]
[1741320613864,0.04479645,140.87,140.83,85.6322512]
[1741320614067,0.04479645,140.87,140.85,7.0992]
[1741320614256,0.04479645,140.87,140.83,85.6322512]
[1741320615256,0.04479645,140.87,140.83,46.39507488]
[1741320616365,0.04479645,140.87,140.84,7.1]
[1741320617956,0.04479645,140.87,140.81,19.05507488]
[1741320618157,0.04479645,140.87,140.81,27.34]
[1741320618559,7.0996,140.85,140.81,27.34]
[1741320619569,7.0991,140.86,140.81,27.34]
[1741320619765,7.0991,140.86,140.81,34.4416]
[1741320619967,7.0991,140.86,140.81,7.1016]
[1741320621267,7.0996,140.85,140.8,34.4419]
[1741320621660,0.04545436,140.84,140.8,34.4419]
[1741320622772,7.14585436,140.84,140.8,34.4419]
[1741320623577,0.04545436,140.84,140.8,27.34]
[1741320623768,0.04545436,140.84,140.81,7.1015]
[1741320624478,7.14555436,140.84,140.8,7.102]
[1741320625274,0.04545436,140.84,140.77,28.89990403]
[1741320625473,7.1015,140.82,140.77,16.94822915]
[1741320625976,0.05219024,140.81,140.78,7.1031]
[1741320626366,0.04901061,140.81,140.78,7.1031]
[1741320627876,0.04901061,140.81,140.76,19.05507488]
[1741320628469,0.04901061,140.81,140.78,19.05507488]
[1741320630474,0.04901061,140.81,140.79,7.1022]
[1741320631676,0.04901061,140.81,140.8,7.1021]
[1741320632071,0.04901061,140.81,140.8,26.15717488]
[1741320633772,7.0989,140.87,140.82,7.1008]
[1741320633971,5.8851,140.88,140.79,27.34]
[1741320634173,19.05507488,140.87,140.79,27.34]
[1741320634574,7.1008,140.83,140.79,27.34]
[1741320634768,27.34,140.85,140.76,46.39507488]
[1741320634973,7.15225316,140.82,140.8,0.04829239]
[1741320635774,0.05105316,140.82,140.8,0.04829239]
[1741320635974,0.05105316,140.82,140.74,9.84482915]
[1741320636176,27.34,140.81,140.74,9.84482915]
[1741320636781,7.1025,140.8,140.75,7.1046]
[1741320637087,0.05341028,140.79,140.74,9.84482915]
[1741320637480,0.05341028,140.79,140.73,20.97737488]
[1741320638479,0.05341028,140.79,140.74,27.34]
[1741320638888,0.05341028,140.79,140.74,34.445]
[1741320639682,0.05341028,140.79,140.75,7.1046]
[1741320639883,0.05341028,140.79,140.74,27.34]
[1741320641590,0.05341028,140.79,140.76,7.1038]
[1741320642787,0.05341028,140.79,140.77,7.1035]
[1741320643290,0.05341028,140.79,140.74,27.34]
[1741320644482,0.05341028,140.79,140.74,39.54621761]
[1741320644987,7.15641028,140.79,140.75,7.1042]
[1741320645485,7.15641028,140.79,140.75,19.31041761]
[1741320647587,0.05341028,140.79,140.77,7.1035]
[1741320647793,0.05341028,140.79,140.77,19.30971761]
[1741320649483,0.05341028,140.79,140.77,12.20621761]
[1741320652498,0.05341028,140.79,140.77,19.30941761]
[1741320654689,0.05341028,140.79,140.77,12.20621761]
[1741320657796,0.05341028,140.79,140.77,19.30981761]
[1741320658495,0.05341028,140.79,140.77,12.20621761]
[1741320658700,0.05341028,140.79,140.76,7.1039]
[1741320660702,0.05341028,140.79,140.75,12.20621761]
[1741320660891,0.05341028,140.79,140.73,39.52621761]
[1741320661794,7.1035,140.78,140.74,7.1047]
[1741320662200,0.05341028,140.79,140.73,39.52621761]
[1741320662498,7.1036,140.77,140.73,46.63141761]
[1741320662796,0.05341028,140.79,140.73,39.52621761]
[1741320663598,0.05341028,140.79,140.75,7.1043]
[1741320663800,0.05341028,140.79,140.75,12.20621761]
[1741320665501,7.15641028,140.79,140.75,12.20621761]
[1741320665695,0.05341028,140.79,140.75,12.20621761]
[1741320666094,0.05341028,140.79,140.74,12.20621761]
[1741320667403,7.15631028,140.79,140.75,7.1045]
[1741320667702,0.05341028,140.79,140.74,12.20621761]
[1741320668300,0.05341028,140.79,140.76,12.20621761]
[1741320668803,0.05341028,140.79,140.77,7.1033]
[1741320673104,0.05341028,140.79,140.78,7.1031]
[1741320674503,0.05341028,140.79,140.76,12.20621761]
[1741320674803,0.05341028,140.79,140.76,19.31021761]
[1741320675508,0.05341028,140.79,140.77,7.1034]
[1741320678314,0.05341028,140.79,140.78,7.1031]
[1741320678612,41.49991761,140.87,140.78,12.20621761]
[1741320678819,41.49991761,140.87,140.81,12.20621761]
[1741320679017,7.0993,140.86,140.82,7.1007]
[1741320679804,0.05339105,140.85,140.83,0.05082716]
[1741320680122,0.05339105,140.85,140.84,7.1001]
[1741320681111,15.9065975,140.9,140.83,12.25704477]
[1741320681313,15.9065975,140.9,140.87,7.0982]
[1741320681519,15.9065975,140.9,140.88,12.20621761]
[1741320681913,15.9065975,140.9,140.89,7.0975]
[1741320682723,9.75e-05,140.9,140.89,7.0975]
[1741320683014,5.106e-05,140.91,140.9,7.097]
[1741320683223,94.39087115,141.0,140.9,39.50621761]
[1741320683424,94.39087115,141.0,140.95,12.20621761]
[1741320684317,0.04791554,140.99,140.96,0.04926551]
[1741320686721,0.04791554,140.99,140.97,12.20621761]
[1741320689015,0.04791554,140.99,140.96,0.04926551]
[1741320690324,7.14081554,140.99,140.96,0.04926551]
[1741320690826,7.0934,140.98,140.96,0.04926551]
[1741320692928,7.14051554,140.99,140.96,0.04926551]
[1741320694131,0.04791554,140.99,140.96,0.04926551]
[1741320694724,0.04791554,140.99,140.97,12.20621761]
[1741320696926,0.04791554,140.99,140.98,27.26]
[1741320697334,0.04791554,140.99,140.98,30.8]
[1741320697723,0.04791554,140.99,140.98,271.993]
[1741320698127,0.04791554,140.99,140.98,261.36]
[1741320704934,5.8791,141.07,140.98,280.36455654]
[1741320705134,3.8236,141.07,141.03,19.00455654]
[1741320705326,3.8236,141.07,141.03,46.24455654]
[1741320705522,3.8236,141.07,141.03,27.24]
[1741320705728,3.8236,141.07,141.0,27.24]
[1741320706131,7.0909,141.03,141.02,0.05153771]
[1741320710029,0.04753706,141.05,141.02,0.05153771]
[1741320710334,7.13713706,141.05,141.02,0.05153771]
[1741320710535,0.04753706,141.05,141.02,0.05153771]
[1741320712236,0.04753706,141.05,141.03,19.00455654]
[1741320712535,0.04753706,141.05,141.04,27.24]
[1741320712729,0.04753706,141.05,141.04,34.33]
[1741320717429,3.8857,141.11,141.04,27.24]
[1741320717628,3.8857,141.11,141.06,19.00455654]
[1741320717834,19.00455654,141.18,141.1,7.0866]
[1741320718042,3.8136,141.16,141.1,7.0866]
[1741320718541,0.05435411,141.14,141.12,0.05063365]
[1741320719945,7.13975411,141.14,141.12,0.05063365]
[1741320720441,0.05435411,141.14,141.09,27.22]
[1741320721241,0.05435411,141.14,141.1,19.00455654]
[1741320721632,0.05435411,141.14,141.11,0.05151454]
[1741320722950,7.0859,141.13,141.11,0.05151454]
[1741320723247,0.05435411,141.14,141.11,0.05151454]
[1741320723443,7.13945411,141.14,141.11,0.05151454]
[1741320723643,0.05435411,141.14,141.11,0.05151454]
[1741320724148,7.0856,141.13,141.11,0.05151454]
[1741320724341,0.05435411,141.14,141.11,0.05151454]
[1741320724535,0.05435411,141.14,141.11,12.19471729]
[1741320725447,0.05435411,141.14,141.11,0.05151454]
[1741320725639,7.0855,141.13,141.11,0.05151454]
[1741320725835,0.05435411,141.14,141.11,0.05151454]
[1741320726040,0.05435411,141.14,141.11,12.19471729]
[1741320726945,0.05435411,141.14,141.12,27.22]
[1741320727846,7.13935411,141.14,141.12,27.22]
[1741320728448,0.05435411,141.14,141.12,27.22]
[1741320728651,7.0855,141.13,141.12,27.22]
[1741320730842,0.05435411,141.14,141.11,12.19471729]
[1741320731040,7.086,141.12,141.11,0.05151454]
[1741320732939,7.0856,141.13,141.11,0.05151454]
[1741320733149,0.05435411,141.14,141.11,0.05151454]
[1741320733944,7.086,141.12,141.11,0.05151454]
[1741320734546,0.05435411,141.14,141.11,12.19471729]
[1741320735144,7.13965411,141.14,141.11,12.19471729]
[1741320735749,7.0856,141.13,141.11,0.05151454]
[1741320737657,0.05435411,141.14,141.11,12.19471729]
[1741320740854,7.13945411,141.14,141.11,12.19471729]
[1741320741558,0.05435411,141.14,141.11,0.05151454]
[1741320742365,7.0858,141.13,141.11,0.05151454]
[1741320742657,0.05435411,141.14,141.11,0.05151454]
[1741320743054,7.0858,141.13,141.11,0.05151454]
[1741320743962,7.13965411,141.14,141.11,0.05151454]
[1741320744165,0.05435411,141.14,141.11,0.05151454]
[1741320744854,7.0859,141.13,141.11,0.05151454]
[1741320745048,12.19755686,141.14,141.11,0.05151454]
[1741320745256,12.19755686,141.14,141.07,39.32320275]
[1741320745559,7.086,141.12,141.07,39.32320275]
[1741320745757,12.14320275,141.14,141.07,39.32320275]
[1741320746156,7.0865,141.11,141.07,46.41150275]
[1741320746356,0.04787309,141.12,141.09,0.04819671]
[1741320747363,7.0868,141.11,141.09,0.04819671]
[1741320748358,7.0865,141.11,141.09,0.04819671]
[1741320748664,12.14320275,141.1,141.05,12.14320275]
[1741320748958,12.14320275,141.08,141.03,39.32320275]
[1741320749955,0.04736881,141.07,141.04,0.05403847]
[1741320750261,12.14320275,141.06,141.02,66.41717632]
[1741320750453,14.12360275,141.06,141.02,66.41717632]
[1741320750656,7.0905,141.03,141.02,66.41717632]
[1741320750967,7.0905,141.03,141.02,39.23717632]
[1741320751562,7.0905,141.03,141.02,36.15057632]
[1741320751763,8.9704,141.03,141.02,36.15057632]
[1741320753154,8.9704,141.03,141.01,0.04775985]
[1741320753559,7.091,141.02,141.01,0.04775985]
[1741320755469,7.0924,141.0,140.97,27.2]
[1741320756665,7.13850719,141.0,140.97,27.2]
[1741320757070,0.04610719,141.0,140.97,34.2935]
[1741320759767,0.04610719,141.0,140.97,7.0935]
[1741320760770,7.13820719,141.0,140.96,46.43710275]
[1741320761375,7.0926,140.99,140.96,12.14320275]
[1741320762267,7.0931,140.98,140.95,27.2]
[1741320762966,7.0931,140.98,140.94,19.23810275]
[1741320763372,12.18930994,141.0,140.94,12.14320275]
[1741320763670,7.0926,140.99,140.95,7.0944]
[1741320764174,7.093,140.98,140.95,7.0944]
[1741320764671,12.18930994,141.0,140.95,7.0944]
[1741320764966,12.18930994,141.0,140.94,12.14320275]
[1741320765563,7.0934,140.98,140.94,19.23810275]
[1741320765759,12.14320275,140.98,140.92,246.00320275]
[1741320765971,7.0943,140.96,140.92,273.20320275]
[1741320766173,7.14490336,140.96,140.92,46.43890275]
[1741320766472,7.14490336,140.96,140.92,19.23890275]
[1741320766660,7.14490336,140.96,140.92,46.43890275]
[1741320768165,0.05060336,140.96,140.92,39.34320275]
[1741320768366,0.05060336,140.96,140.94,7.095]
[1741320768874,0.05060336,140.96,140.93,7.0954]
[1741320769177,0.05060336,140.96,140.92,39.34320275]
[1741320769475,0.05060336,140.96,140.94,7.095]
[1741320770371,0.05060336,140.96,140.93,7.0954]
[1741320770871,0.05060336,140.96,140.92,39.34320275]
[1741320771371,0.05060336,140.96,140.92,46.43910275]
[1741320771772,0.05060336,140.96,140.93,7.0955]
[1741320772473,0.05060336,140.96,140.94,19.23780275]
[1741320772972,0.05060336,140.96,140.94,12.14320275]
[1741320775273,0.05060336,140.96,140.94,19.23820275]
[1741320775475,0.05060336,140.96,140.94,12.14320275]
[1741320775973,0.05060336,140.96,140.87,3.1970336]
[1741320776274,12.14320275,140.95,140.9,12.14320275]
[1741320776478,0.05246747,140.93,140.9,12.14320275]
[1741320777070,0.05246747,140.93,140.9,39.34320275]
[1741320777473,0.05246747,140.93,140.91,7.0961]
[1741320779174,0.05246747,140.93,140.9,39.34320275]
[1741320779379,0.05246747,140.93,140.92,19.23920275]
[1741320782179,0.05246747,140.93,140.91,7.0964]
[1741320783380,0.05246747,140.93,140.92,7.096]
[1741320784083,0.05246747,140.93,140.92,19.23920275]
[1741320786683,0.05246747,140.93,140.92,7.096]
[1741320786989,0.05246747,140.93,140.92,19.23920275]
[1741320790889,9.0822,141.0,140.96,7.0939]
[1741320791290,9.0822,141.0,140.95,39.32320275]
[1741320791890,0.05202018,140.99,140.96,0.05243256]
[1741320793685,7.14452018,140.99,140.96,0.05243256]
[1741320793886,12.19522293,140.99,140.96,0.05243256]
[1741320794287,7.0934,140.98,140.96,0.05243256]
[1741320795294,19.28782293,140.99,140.96,0.05243256]
[1741320795993,12.19522293,140.99,140.96,0.05243256]
[1741320796382,0.05202018,140.99,140.96,0.05243256]
[1741320798995,0.05202018,140.99,140.96,7.14643256]
[1741320799989,0.05202018,140.99,140.98,7.093]
[1741320801795,0.05202018,140.99,140.97,12.14320275]
[1741320803099,0.05202018,140.99,140.97,19.23640275]
[1741320804497,0.05202018,140.99,140.96,0.05243256]
[1741320805088,7.14472018,140.99,140.96,0.05243256]
[1741320805493,0.05202018,140.99,140.96,0.05243256]
[1741320805793,7.14472018,140.99,140.96,0.05243256]
[1741320806999,7.14472018,140.99,140.96,7.14643256]
[1741320807697,0.05202018,140.99,140.96,7.14643256]
[1741320807895,0.05202018,140.99,140.97,7.0935]
[1741320808096,0.05202018,140.99,140.96,12.19563531]
[1741320808492,0.05202018,140.99,140.97,7.0935]
[1741320809601,0.05202018,140.99,140.96,12.19563531]
[1741320809801,0.05202018,140.99,140.96,19.28953531]
[1741320810701,0.05202018,140.99,140.96,0.05243256]
[1741320812403,7.14472018,140.99,140.96,7.14643256]
[1741320813599,7.14472018,140.99,140.96,0.05243256]
[1741320814804,7.0934,140.98,140.96,0.05243256]
[1741320815899,0.05202018,140.99,140.96,0.05243256]
[1741320817100,7.0933,140.98,140.96,0.05243256]
[1741320817303,0.05202018,140.99,140.96,0.05243256]
[1741320818407,7.14462018,140.99,140.96,7.14643256]
[1741320818813,0.05202018,140.99,140.96,12.19563531]
[1741320819004,0.05202018,140.99,140.97,7.0932]
[1741320820800,0.05202018,140.99,140.96,19.28953531]
[1741320822015,0.05202018,140.99,140.96,12.19563531]
[1741320822216,0.05202018,140.99,140.97,7.0935]
[1741320822816,0.05202018,140.99,140.98,46.39620275]
[1741320825015,1.8981,141.04,141.03,7.0905]
[1741320825221,3.9127,141.06,141.03,7.0905]
[1741320825719,3.9127,141.06,141.02,27.16]
[1741320825919,3.9127,141.06,141.02,34.2506]
[1741320826326,0.04835831,141.05,141.03,0.05239815]
[1741320832226,0.04835831,141.05,141.04,7.09]
[1741320834327,0.04835831,141.05,141.03,12.1956009]
[1741320835820,0.04835831,141.05,141.03,19.2861009]
[1741320837330,0.04835831,141.05,141.04,7.09]
[1741320837924,0.04835831,141.05,141.03,19.2859009]
[1741320838432,0.04835831,141.05,141.03,12.1956009]
[1741320839133,0.04835831,141.05,141.03,19.2856009]
[1741320839629,7.13825831,141.05,141.03,12.1956009]
[1741320840225,0.04835831,141.05,141.03,12.1956009]
[1741320840630,0.04835831,141.05,141.04,7.09]
[1741320841234,0.04835831,141.05,141.03,19.2860009]
[1741320841437,0.04835831,141.05,141.03,12.1956009]
[1741320842535,0.04835831,141.05,141.03,19.2861009]
[1741320843437,0.04835831,141.05,141.04,7.09]
[1741320847132,7.0857,141.13,141.06,7.0886]
[1741320847330,12.14320275,141.15,141.09,12.14320275]
[1741320847834,12.14320275,141.13,141.07,39.26320275]
[1741320848340,7.0875,141.1,141.09,0.04886908]
[1741320853335,12.18886166,141.11,141.05,12.14320275]
[1741320853532,14.17510275,141.09,141.03,12.14320275]
[1741320853737,14.17510275,141.09,141.03,39.24320275]
[1741320853929,7.0899,141.05,141.03,39.24320275]
[1741320854138,12.14320275,141.08,141.03,39.24320275]
[1741320854543,7.0899,141.05,141.04,0.05137634]
[1741320857644,7.089,141.06,141.04,0.05137634]
[1741320858344,7.13993847,141.07,141.04,0.05137634]
[1741320859045,0.05133847,141.07,141.04,27.15137634]
[1741320861541,7.13983847,141.07,141.04,27.15137634]
[1741320862653,0.05133847,141.07,141.04,27.15137634]
[1741320862851,0.05133847,141.07,141.04,0.05137634]
[1741320863645,7.089,141.06,141.04,0.05137634]
[1741320864447,7.0895,141.05,141.04,0.05137634]
[1741320864650,0.05133847,141.07,141.04,0.05137634]
[1741320865651,9.13583847,141.07,141.04,0.05137634]
[1741320866255,7.0891,141.06,141.04,0.05137634]
[1741320867347,2.04703847,141.07,141.04,0.05137634]
[1741320867547,0.05133847,141.07,141.04,0.05137634]
[1741320868556,7.0895,141.05,141.04,0.05137634]
[1741320870955,7.13993847,141.07,141.04,0.05137634]
[1741320871155,0.05133847,141.07,141.04,0.05137634]
[1741320871655,7.089,141.06,141.04,0.05137634]
[1741320872252,7.14003847,141.07,141.04,0.05137634]
[1741320872448,7.14003847,141.07,141.04,12.19457909]
[1741320873354,0.05133847,141.07,141.05,7.0893]
[1741320874646,0.05133847,141.07,141.06,19.23220275]
[1741320883564,0.05133847,141.07,141.06,12.14320275]
[1741320900992,0.05133847,141.07,141.06,19.23220275]
[1741320901186,1.9232,141.14,141.06,12.14320275]
[1741320901492,7.0876,141.09,141.08,12.14320275]
[1741320901988,7.0876,141.09,141.07,27.06]
[1741320902180,7.13649214,141.09,141.07,27.10571478]
[1741320902585,0.04889214,141.09,141.07,27.10571478]
[1741320902983,0.04889214,141.09,141.08,12.14320275]
[1741320904793,0.04889214,141.09,141.08,19.23120275]
[1741320905088,0.04889214,141.09,141.08,12.14320275]
[1741320905983,0.04889214,141.09,141.07,27.10571478]
[1741320906787,7.13649214,141.09,141.07,27.10571478]
[1741320907695,0.04889214,141.09,141.07,27.10571478]
[1741320907894,0.04889214,141.09,141.07,39.24891753]
[1741320908585,0.04889214,141.09,141.07,46.33731753]
[1741320910201,0.04889214,141.09,141.08,7.088]
[1741320910493,0.04889214,141.09,141.07,27.10571478]
[1741320910694,0.04889214,141.09,141.07,46.33721753]
[1741320913283,7.13649214,141.09,141.07,27.10571478]
[1741320913897,0.04889214,141.09,141.07,27.10571478]
[1741320914496,7.13659214,141.09,141.07,27.10571478]
[1741320915900,0.04889214,141.09,141.07,27.10571478]
[1741320917595,7.13649214,141.09,141.07,27.10571478]
[1741320917990,0.04889214,141.09,141.07,27.10571478]
[1741320919394,0.04889214,141.09,141.07,46.33731753]
[1741320919603,0.04889214,141.09,141.07,39.24891753]
[1741320921205,0.04889214,141.09,141.07,46.33721753]
[1741320921796,0.04889214,141.09,141.07,39.24891753]
[1741320922705,0.04889214,141.09,141.08,7.088]
[1741320923094,0.04889214,141.09,141.07,39.24891753]
[1741320923296,0.04889214,141.09,141.07,46.33721753]
[1741320923993,0.04889214,141.09,141.08,7.088]
[1741320928000,16.00685234,141.18,141.07,39.24891753]
[1741320928203,77.29066604,141.24,141.08,43.98763538]
[1741320928506,77.29066604,141.24,141.2,12.14320275]
[1741320928705,77.29066604,141.24,141.23,12.14320275]
[1741320929097,77.34485704,141.25,141.23,12.14320275]
[1741320929296,77.34485704,141.25,141.23,19.22370275]
[1741320929700,77.34485704,141.25,141.23,12.14320275]
[1741320930406,79.32625704,141.25,141.23,12.14320275]
[1741320932907,2.035591,141.25,141.23,12.14320275]
[1741320939517,0.054191,141.25,141.23,12.14320275]
[1741320940207,0.054191,141.25,141.23,19.22340275]
[1741320940607,0.054191,141.25,141.24,7.08]
[1741320940803,0.054191,141.25,141.23,12.14320275]
[1741320941514,1.8651,141.3,141.23,12.14320275]
[1741320941813,1.8651,141.3,141.28,12.14320275]
[1741320942012,1.8651,141.3,141.29,27.0]
[1741320949931,7.12904777,141.31,141.29,27.0]
[1741320950132,7.12904777,141.31,141.3,12.14320275]
[1741320951926,0.05224777,141.31,141.3,12.14320275]
[1741320952829,0.05224777,141.31,141.3,19.22010275]
[1741320955231,9.1038,141.35,141.32,7.0756]
[1741320955232,2.0292,141.35,141.32,7.0756]
[1741320955423,2.0292,141.35,141.34,12.14320275]
[1741320957825,9.1036,141.35,141.34,12.14320275]
[1741320960524,2.0292,141.35,141.34,12.14320275]
[1741320960938,9.1036,141.35,141.34,12.14320275]
[1741320961235,2.0292,141.35,141.33,0.04756818]
[1741320961931,7.0749,141.34,141.33,0.04756818]
[1741320962238,2.0292,141.35,141.31,12.14320275]
[1741320962535,7.0758,141.33,141.31,12.14320275]
[1741320962739,2.0292,141.35,141.31,12.14320275]
[1741320963235,2.0292,141.35,141.32,0.04953211]
[1741320964427,7.0749,141.34,141.32,0.04953211]
[1741320964632,2.0292,141.35,141.33,12.14320275]
[1741320965039,7.0749,141.34,141.33,12.14320275]
[1741320965430,7.0749,141.34,141.33,9.06010275]
[1741320967037,7.0749,141.34,141.32,12.19273486]
[1741320967737,2.0292,141.35,141.32,12.19273486]
[1741320967937,2.0292,141.35,141.32,19.26833486]
[1741320969838,2.0292,141.35,141.32,12.19273486]
[1741320971237,7.0749,141.34,141.32,12.19273486]
[1741320971441,2.0292,141.35,141.32,12.19273486]
[1741320971641,7.0749,141.34,141.32,12.19273486]
[1741320971840,2.0292,141.35,141.32,12.19273486]
[1741320973241,7.0749,141.34,141.32,12.19273486]
[1741320973443,2.0292,141.35,141.32,12.19273486]
[1741320973748,7.075,141.34,141.32,12.19273486]
[1741320974039,2.0292,141.35,141.32,12.19273486]
[1741320974242,7.0753,141.34,141.32,12.19273486]